[Event "1st Anfield Cup 2022"]
[Site "Kyiv"]
[Date "2022.09.25"]
[Round "7.3"]
[White "Andreev, Eduard"]
[Black "Skliarov, Viktor"]
[Result "1/2-1/2"]
[ECO "B30"]
[WhiteElo "2413"]
[BlackElo "2384"]
[Annotator "RC"]
[PlyCount "49"]
[EventDate "2022.09.20"]
[EventType "swiss"]
[EventCountry "UKR"]
[SourceTitle "playchess.com"]
[Source "ChessBase"]
[SourceQuality "1"]
[TimeControl "900+10"]

1. e4 {[%emt 0:00:02]} c5 {[%emt 0:00:03]} 2. Nf3 {[%emt 0:00:04]} Nc6 {[%emt 0:00:05]} 3. Bb5 {[%emt 0:00:06]} e6 {[%emt 0:00:06]} 4. O-O {[%emt 0:00:37]} Nge7 {[%emt 0:00:09]} 5. Nc3 {[%emt 0:00:05]} Nd4 {[%emt 0:01:37]} 6. Nxd4 {[%emt 0:00:06]} cxd4 {[%emt 0:00:03]} 7. Ne2 {[%emt 0:00:03]} g6 {[%emt 0:01:21]} 8. c3 {[%emt 0:02:19]} a6 {[%emt 0:01:02]} 9. Ba4 {[%emt 0:01:25]} b5 {[%emt 0:01:50]} 10. Bc2 {[%emt 0:00:05]} dxc3 {[%emt 0:01:51]} 11. dxc3 {[%emt 0:00:04]} Bg7 {[%emt 0:00:02]} 12. Qd6 {[%emt 0:01:47]} O-O {[%emt 0:00:38]} 13. Bg5 {[%emt 0:01:16]} f6 {[%emt 0:01:40]} 14. Be3 {[%emt 0:00:32]} Nc6 {[%emt 0:01:06]} 15. f4 {[%emt 0:00:50]} Re8 {[%emt 0:01:56]} 16. a4 {[%emt 0:00:52]} Bf8 {[%emt 0:00:21]} 17. Qd2 {[%emt 0:00:03]} b4 {[%emt 0:00:43]} 18. c4 {[%emt 0:00:16]} Bb7 {[%emt 0:00:50]} 19. Rad1 {[%emt 0:00:14]} Na5 {[%emt 0:00:32]} 20. b3 {[%emt 0:00:45]} d5 {[%emt 0:00:17]} 21. cxd5 {[%emt 0:02:21]} exd5 {[%emt 0:00:03]} 22. e5 {[%emt 0:00:07]} d4 {[%emt 0:01:25]} 23. Nxd4 {[%emt 0:01:45]} fxe5 {[%emt 0:00:16]} 24. fxe5 {[%emt 0:00:03]} Rxe5 {[%emt 0:00:03]} 25. Qf2 {[%emt 0:02:31]} 1/2-1/2

[Event "1st Anfield Cup 2022"]
[Site "Kyiv"]
[Date "2022.09.25"]
[Round "7.4"]
[White "Pavlov, Sergey"]
[Black "Maly, Alexey"]
[Result "1/2-1/2"]
[ECO "E07"]
[WhiteElo "2333"]
[BlackElo "2370"]
[Annotator "TA"]
[PlyCount "54"]
[EventDate "2022.09.20"]
[EventType "swiss"]
[EventCountry "UKR"]
[SourceTitle "playchess.com"]
[Source "ChessBase"]
[SourceQuality "1"]
[TimeControl "900+10"]

{[%evp 18,54,23,18,14,22,14,18,27,26,16,21,24,23,33,26,25,0,12,-7,0,-7,-6,-8,-2,-14,-14,-7,0,0,0,-8,-7,-14,0,0,0,0,8]} 1. c4 {[%emt 0:00:03]} e6 {[%emt 0:00:08]} 2. g3 {[%emt 0:00:02]} d5 {[%emt 0:00:01]} 3. Bg2 {[%emt 0:00:02]} Nf6 {[%emt 0:00:02]} 4. Nf3 {[%emt 0:00:01]} Be7 {[%emt 0:00:01]} 5. d4 {[%emt 0:00:02]} O-O {[%emt 0:00:02]} 6. Nc3 {[%emt 0:00:01]} c6 {[%emt 0:00:02]} 7. O-O {[%emt 0:00:03]} Nbd7 {[%emt 0:00:01]} 8. Qd3 {[%emt 0:00:02]} b6 {[%emt 0:00:04]} 9. Rd1 {[%emt 0:00:03]} Bb7 {[%emt 0:00:05]} 10. e4 {[%emt 0:00:04]} dxe4 {[%emt 0:00:04] E07: Closed Catalan: Main Line (5 Nf3 0-0 6 0-0 Nbd7).} 11. Nxe4 {[%emt 0:00:03]} c5 {[%emt 0:02:42]} 12. Nxf6+ {[%emt 0:05:13]} Bxf6 {[%emt 0:02:54] [#]} 13. Ng5 $1 {[%emt 0:00:32]} Bxg5 {[%emt 0:00:02]} 14. Bxb7 {[%emt 0:00:08]} Bxc1 {[%emt 0:00:46]} 15. Raxc1 {[%emt 0:01:02] And now dxc5 would win.} Rb8 {[%emt 0:00:10]} 16. Bc6 {[%emt 0:03:25] [#]} Nf6 $146 {[%emt 0:04:03]} ({Predecessor:} 16... cxd4 17. Qxd4 Nf6 18. Qe5 Qe7 19. Rd6 Rfd8 20. Rcd1 Rxd6 21. Rxd6 Rc8 22. b4 Ne8 23. Bxe8 Qxe8 {1-0 (43) Neckar,L (2355)-Dobrovolsky,L (2395) Czechoslovakia 1991}) 17. dxc5 {[%emt 0:00:32]} bxc5 {[%emt 0:00:21] The position is equal.} 18. Qxd8 {[%emt 0:02:01]} Rfxd8 {[%emt 0:00:01]} 19. b3 {[%emt 0:00:01]} Kf8 {[%emt 0:00:24]} 20. Kf1 {[%emt 0:00:47]} Ke7 {[%emt 0:00:01]} 21. Ke2 {[%emt 0:00:02]} Rxd1 {[%emt 0:00:27]} 22. Rxd1 {[%emt 0:00:00]} Rd8 {[%emt 0:00:01]} 23. Rxd8 {[%emt 0:00:30]} Kxd8 $11 {[%emt 0:00:01] KB-KN} 24. f4 {[%emt 0:00:07]} Kc7 {[%emt 0:00:08]} 25. Bf3 {[%emt 0:00:07]} Kd6 {[%emt 0:00:10]} 26. a3 {[%emt 0:01:07]} a5 {[%emt 0:00:16]} 27. Kd3 {[%emt 0:00:52]} e5 {[%emt 0:02:25] A balanced but interesting game.  Weighted Error Value: White=0.05 (flawless) /Black=0.02 (flawless)} 1/2-1/2

[Event "1st Anfield Cup 2022"]
[Site "Kyiv"]
[Date "2022.09.25"]
[Round "7.6"]
[White "Petrov, Vladimir Sergeev"]
[Black "Grinev, Valeriy"]
[Result "0-1"]
[ECO "A48"]
[WhiteElo "2349"]
[BlackElo "2425"]
[Annotator "TA"]
[PlyCount "120"]
[EventDate "2022.09.20"]
[EventType "swiss"]
[EventCountry "UKR"]
[SourceTitle "playchess.com"]
[Source "ChessBase"]
[SourceQuality "1"]
[TimeControl "900+10"]

{[%evp 11,120,0,17,16,16,9,56,9,8,3,15,12,22,7,39,20,25,29,46,27,27,13,37,41,38,24,25,18,16,0,30,13,5,16,54,39,42,37,50,9,64,79,79,70,52,20,17,20,16,6,45,-18,18,18,18,24,30,27,0,0,14,14,57,76,71,-367,-326,-354,-326,-358,-341,-281,-291,-578,-550,-504,-385,-397,-398,-389,-369,-402,-441,-457,-421,-486,-485,-562,-530,-599,-182,-741,-759,-695,0,-879,-595,-1208,-1224,-1295,-1279,-5261,-1517,-1591,-610,-29984,-29985,-29986,-29987,-29993,-29994]} 1. d4 {[%emt 0:00:01]} Nf6 {[%emt 0:00:03]} 2. Nf3 {[%emt 0:00:01]} g6 {[%emt 0:00:06]} 3. Bg5 {[%emt 0:00:03]} Bg7 {[%emt 0:00:03]} 4. Nbd2 {[%emt 0:00:01]} c5 {[%emt 0:00:03]} 5. e3 {[%emt 0:00:13]} b6 {[%emt 0:00:08]} 6. c3 {[%emt 0:00:03]} Bb7 {[%emt 0:00:08]} 7. a4 {[%emt 0:00:03] A48: 1 d4 Nf6 2 Nf3 g6: Torre, London and Colle Systems.} a6 {[%emt 0:00:11]} 8. Bd3 {[%emt 0:00:10][%cal Oa4a5]} O-O {[%emt 0:00:25]} (8... d5 $11) 9. O-O {[%emt 0:00:02]} (9. h4 $14) 9... d6 {[%emt 0:00:07]} 10. Bh4 {[%emt 0:00:03]} Nbd7 {[%emt 0:00:37]} 11. Re1 {[%emt 0:00:02]} h6 {[%emt 0:00:34]} 12. h3 {[%emt 0:00:22]} Nh5 {[%emt 0:00:53] [#]} 13. Nh2 $146 {[%emt 0:00:14]} ({Predecessor:} 13. Rc1 Rc8 14. Qe2 cxd4 15. cxd4 a5 16. Rxc8 Bxc8 17. Ne4 Re8 18. Nxd6 Rf8 19. Nxc8 Qxc8 20. Bxe7 Re8 21. Bd6 Qc6 22. Bh2 Qxa4 23. Bb5 {1-0 (23) Demchenko,A (2641)-Grinev,V (2441) Chess.com INT 2020}) 13... cxd4 {[%emt 0:01:02]} 14. cxd4 {[%emt 0:00:08]} Qe8 {[%emt 0:01:40]} 15. Be2 {[%emt 0:02:27]} Nhf6 {[%emt 0:00:08]} 16. Bg3 {[%emt 0:00:05]} Ne4 {[%emt 0:00:23]} 17. Nxe4 {[%emt 0:00:07]} Bxe4 {[%emt 0:00:02]} 18. Qb3 {[%emt 0:00:07]} Qb8 {[%emt 0:00:39]} 19. f3 {[%emt 0:01:33]} Bc6 {[%emt 0:00:04]} 20. Bf2 {[%emt 0:00:22]} e5 {[%emt 0:00:24]} (20... b5 $5 {[%cal Rb5a4]}) 21. dxe5 {[%emt 0:00:46]} Nc5 {[%emt 0:00:02] Prevents e6.} 22. Qc2 {[%emt 0:00:06]} Qe8 {[%emt 0:01:15][%cal Rc6a4]} 23. exd6 {[%emt 0:01:04] a5 is the strong threat.} Bxa4 {[%emt 0:00:02]} 24. Qb1 {[%emt 0:00:02]} Bb3 {[%emt 0:01:04]} 25. Bd1 {[%emt 0:01:12]} Qe5 {[%emt 0:00:34]} (25... Bc4 $11) 26. Bxb3 $14 {[%emt 0:00:14]} Nxb3 {[%emt 0:00:02]} 27. Ra3 {[%emt 0:00:02]} Na5 {[%emt 0:00:02]} 28. b4 {[%emt 0:01:21]} Nc4 {[%emt 0:00:02]} 29. Rd3 {[%emt 0:00:01]} Rfd8 {[%emt 0:00:18]} 30. Ng4 {[%emt 0:00:03]} Qe6 {[%emt 0:00:04]} 31. e4 {[%emt 0:00:51]} ({White should play} 31. Bg3 $1 $14) 31... Rxd6 {[%emt 0:00:19]} (31... h5 $5 {[%cal Rh5g4]} 32. Ne3 Nxe3 33. Rexe3 Be5 $11) 32. Rxd6 {[%emt 0:00:03]} Qxd6 {[%emt 0:00:02]} 33. Qc1 {[%emt 0:00:06][%csl LRc4,LRh6]} Qxb4 {[%emt 0:00:22]} 34. Nxh6+ {[%emt 0:00:02]} Kf8 {[%emt 0:00:12]} 35. Qf4 {[%emt 0:00:21][%csl Gh6][%cal Rf4f7]} Qe7 {[%emt 0:00:08]} 36. Bh4 {[%emt 0:00:38]} Qc5+ {[%emt 0:01:41]} 37. Kh1 {[%emt 0:00:32][%csl Gh6][%cal Rf4f7]} Ne5 {[%emt 0:00:03][%cal Bc4e5,Be5d3,Bd3e1][%mdl 32] [#]} 38. Bf6 $2 {[%emt 0:00:21][%mdl 8192]} (38. Rd1 $1 $16 {and life is bright. Strongly threatening Bf6.} Qc6 39. Bg5 (39. Qg5 Re8 $11)) 38... Nd3 $1 $19 {[%emt 0:00:06][%csl LRe1,LRf4]} 39. Bxg7+ {[%emt 0:00:02]} Kxg7 {[%emt 0:00:02]} 40. Qd2 {[%emt 0:02:03]} Nxe1 {[%emt 0:02:13]} 41. Ng4 {[%emt 0:00:00] [#] Qh6+ would kill now.} Kf8 $1 {[%emt 0:00:22]} (41... Nc2 $2 {is a self mate.} 42. Qh6+ Kg8 43. Nf6#) 42. Qxe1 $2 {[%emt 0:00:04][%mdl 4096] Endgame KQR-KQN} (42. Nf6 {was forced.} Qc2 43. Qxe1) 42... Rc8 {[%emt 0:00:54]} 43. Kh2 {[%emt 0:00:24]} Qd4 {[%emt 0:02:04]} 44. Qh4 {[%emt 0:01:48]} Rc6 {[%emt 0:00:16] Prevents Nf6.} 45. Qh6+ {[%emt 0:00:37]} Ke8 {[%emt 0:00:28]} 46. Qg5 {[%emt 0:00:04]} Re6 {[%emt 0:00:13]} 47. e5 {[%emt 0:00:27]} Kd7 {[%emt 0:00:02]} 48. f4 {[%emt 0:00:20]} a5 {[%emt 0:00:07]} 49. Nf6+ {[%emt 0:01:06]} Kc7 {[%emt 0:00:01] And now ...a4 would win.} 50. Qg3 {[%emt 0:00:11]} Kb8 $2 {[%emt 0:00:17]} (50... b5 51. Nh7 a4) 51. Ng4 $2 {[%emt 0:00:12]} (51. f5 Re7 52. e6+ Kb7 53. Qf3+ Ka7 54. Nd5 Qe5+ 55. Kg1) 51... a4 {[%emt 0:00:15]} 52. Ne3 {[%emt 0:00:13]} Qe4 $2 {[%emt 0:00:28]} (52... Qc5 $19 53. Qh4 Rc6 54. Qd8+ Rc8) 53. Qh4 $2 {[%emt 0:00:26][%mdl 8192]} Qd3 {[%emt 0:00:31]} ({Stronger than} 53... Qxe3 54. Qd8+ Kb7 55. Qd7+ Ka8 56. Qd8+ Kb7 57. Qd7+ Kb8 58. Qd8+ Kb7 $11) 54. Qh8+ {[%emt 0:00:10]} Kb7 {[%emt 0:00:24]} 55. Qf8 {[%emt 0:00:01]} Rc6 {[%emt 0:00:15]} 56. Ng4 {[%emt 0:00:38]} Qc4 {[%emt 0:00:11]} (56... Rc3 $142 57. Qe7+ Ka6) 57. Kg3 {[%emt 0:00:12]} a3 {[%emt 0:00:04]} (57... Qb3+ $142 58. Kh4 a3) 58. Ne3 {[%emt 0:00:03]} Qb3 {[%emt 0:00:09] Black mates.} 59. Kg4 {[%emt 0:00:53]} a2 {[%emt 0:00:16]} 60. Qxf7+ {[%emt 0:00:35]} Qxf7 {[%emt 0:00:02] Weighted Error Value: White=0.69/Black=0.53} 0-1

[Event "1st Anfield Cup 2022"]
[Site "Kyiv"]
[Date "2022.09.25"]
[Round "8.1"]
[White "Golubev, Mikhail"]
[Black "Andreev, Eduard"]
[Result "1/2-1/2"]
[ECO "B57"]
[WhiteElo "2461"]
[BlackElo "2413"]
[Annotator "TA"]
[PlyCount "37"]
[EventDate "2022.09.20"]
[EventType "swiss"]
[EventCountry "UKR"]
[SourceTitle "playchess.com"]
[Source "ChessBase"]
[SourceQuality "1"]
[TimeControl "900+10"]

{[%evp 20,22,29,15,35]} 1. e4 {[%emt 0:00:03]} c5 {[%emt 0:00:02]} 2. Nf3 {[%emt 0:00:02]} d6 {[%emt 0:00:02]} 3. d4 {[%emt 0:00:02]} cxd4 {[%emt 0:00:02]} 4. Nxd4 {[%emt 0:00:02]} Nf6 {[%emt 0:00:02]} 5. Nc3 {[%emt 0:00:02]} Nc6 {[%emt 0:00:03]} 6. Bc4 {[%emt 0:00:04]} Bd7 {[%emt 0:00:05]} 7. Bb3 {[%emt 0:00:20]} g6 {[%emt 0:00:07]} 8. f3 {[%emt 0:00:15]} Nxd4 {[%emt 0:00:05]} 9. Qxd4 {[%emt 0:00:04]} Bg7 {[%emt 0:00:02]} 10. Bg5 {[%emt 0:00:07]} O-O 11. O-O-O {[%emt 0:00:45]} a5 {[#] An even fight not without its subleties. B57: Classical Sicilian: Sozin with 6...Qb6.} {Predecessor:} 12. a4 $146 b5 13. Qe3 bxa4 14. Bxa4 Bxa4 15. Nxa4 Qc7 16. Rd3 Rab8 17. b3 Rfe8 18. e5 dxe5 19. Rhd1 {0-1 (36) Perez Gonzalez,J (2177)-Aranda Marin,C (2353) Madrid 2020} 1/2-1/2

[Event "1st Anfield Cup 2022"]
[Site "Kyiv"]
[Date "2022.09.25"]
[Round "8.2"]
[White "Vysochin, Spartak"]
[Black "Golichenko, Ilija"]
[Result "1-0"]
[ECO "B22"]
[WhiteElo "2512"]
[BlackElo "2413"]
[Annotator "TA"]
[PlyCount "95"]
[EventDate "2022.09.20"]
[EventType "swiss"]
[EventCountry "UKR"]
[SourceTitle "playchess.com"]
[Source "ChessBase"]
[SourceQuality "1"]
[TimeControl "900+10"]

{[%evp 24,95,12,31,24,13,21,1,31,20,26,11,39,16,52,66,128,131,152,155,170,165,172,184,184,177,168,179,169,163,181,181,176,184,192,195,195,187,162,0,188,216,302,312,318,311,319,311,314,310,321,214,295,180,212,212,862,830,972,269,753,353,29945,29947,29982,29983,29983,29984,29984,29984,29984,29982,29985,567]} 1. e4 {[%emt 0:00:01]} c5 {[%emt 0:00:02]} 2. c3 {[%emt 0:00:05]} Nf6 {[%emt 0:00:03]} 3. e5 {[%emt 0:00:01]} Nd5 {[%emt 0:00:01]} 4. d4 {[%emt 0:00:03]} cxd4 {[%emt 0:00:17]} 5. cxd4 {[%emt 0:00:01]} d6 {[%emt 0:00:06]} 6. Bc4 {[%emt 0:00:02]} e6 {[%emt 0:00:27]} 7. Nf3 {[%emt 0:00:07]} Nc6 {[%emt 0:00:08]} 8. O-O {[%emt 0:00:04]} Be7 {[%emt 0:00:13]} 9. Qe2 {[%emt 0:00:05]} O-O {[%emt 0:00:27]} 10. Rd1 {[%emt 0:00:03]} a6 {[%emt 0:00:31]} 11. exd6 {[%emt 0:01:43]} Qxd6 {[%emt 0:00:26]} 12. Nc3 Nxc3 {[%emt 0:01:24]} 13. bxc3 {[%emt 0:00:04]} b5 {[%emt 0:00:04] B22: Sicilian: 2 c3.} 14. Bd3 {[%emt 0:00:33]} Bb7 {[%emt 0:00:04]} 15. Qe4 {[%emt 0:02:30][%csl Gd3][%cal Re4h7]} f5 {[%emt 0:00:45] The position is equal.} 16. Qe2 {[%emt 0:00:25]} Bf6 {[%emt 0:00:25] [#]} 17. Bg5 $146 {[%emt 0:01:06]} ({Predecessor:} 17. Bb2 Kh8 18. Re1 Rae8 19. Ne5 Bxe5 20. dxe5 Qc7 21. Ba3 Ne7 22. c4 b4 23. Bxb4 {1-0 (31) Spence,D (2198)-Gibson,C (2019) Gibraltar 2008}) 17... Bxg5 {[%emt 0:01:32]} 18. Nxg5 {[%emt 0:00:02]} Rae8 {[%emt 0:02:39]} 19. a4 $1 {[%emt 0:00:07]} (19. Qh5 h6 20. Nf3 Rc8 $11) 19... b4 {[%emt 0:07:23]} (19... h6 $14) 20. Bc4 $1 $16 {[%emt 0:01:00][%cal Rc4e6] White is more active.} (20. Qh5 $2 h6 21. Nxe6 Rxe6 $17) 20... Nd8 {[%emt 0:00:54]} 21. cxb4 {[%emt 0:00:20]} (21. Qh5 h6 22. Nf3 bxc3 $15) 21... h6 {[%emt 0:00:09]} 22. Nf3 {[%emt 0:00:07]} Qxb4 {[%emt 0:00:10]} 23. Bxa6 {[%emt 0:00:53]} Bd5 {[%emt 0:00:05]} 24. Ne5 {[%emt 0:01:19] Threatens to win with Bb5.} Nc6 {[%emt 0:00:12]} 25. Nxc6 {[%emt 0:00:15]} Bxc6 {[%emt 0:00:00]} 26. Bb5 {[%emt 0:00:28]} Bxb5 {[%emt 0:00:24]} 27. axb5 {[%emt 0:00:02]} ({Much less strong is} 27. Qxb5 Qxb5 28. axb5 Rb8 $16) 27... Rf7 {[%emt 0:00:24]} 28. Qe5 {[%emt 0:03:32] Prevents Rb8.} Rd7 {[%emt 0:00:17] [#]} 29. Qc5 $1 {[%emt 0:00:14]} Qb3 {[%emt 0:00:15]} 30. Rdb1 {[%emt 0:00:31]} Qd3 {[%emt 0:00:09]} 31. Rd1 $2 {[%emt 0:01:51]} (31. b6 $18) 31... Qe4 {[%emt 0:00:00]} (31... Qb3 $11 {and Black stays safe.}) 32. b6 $18 {[%emt 0:00:17]} Rb8 {[%emt 0:00:10]} 33. Ra7 {[%emt 0:00:27]} Rdb7 {[%emt 0:00:03]} 34. Rxb7 {[%emt 0:00:12]} Qxb7 {[%emt 0:00:23][%mdl 4096] Endgame KQR-KQR} 35. Rb1 {[%emt 0:00:08]} Qe4 {[%emt 0:00:03] [#]} 36. Qb4 {[%emt 0:00:50]} Rb7 {[%emt 0:00:03]} 37. h3 {[%emt 0:00:03]} Kh7 {[%emt 0:00:15]} 38. Rb2 {[%emt 0:00:52]} Qd5 {[%emt 0:00:25]} 39. Rc2 {[%emt 0:00:26] And now Rc7 would win.} Qd8 {[%emt 0:00:09] Prevents Rc7.} (39... Rd7 40. Rc4 (40. Rc7 Qxd4 41. Qxd4 Rxd4 $16) 40... e5) 40. Rc6 {[%emt 0:00:06]} Qd5 {[%emt 0:00:08]} 41. Qd6 $2 {[%emt 0:00:07]} (41. Rc7 {White wants to mate with Qe7.} Rb8 42. b7 Rxb7 43. Rxb7) 41... Qe4 $2 {[%emt 0:00:14]} (41... Rd7 42. Qxd5 (42. Qxe6 Qxe6 43. Rxe6 Rxd4 $18) 42... Rxd5 43. Rxe6 Rxd4) 42. Qxe6 {[%emt 0:00:05]} (42. Kh2 $142) 42... Qb1+ $2 {[%emt 0:00:06]} (42... Qxe6 $18 43. Rxe6 Rd7) 43. Kh2 {[%emt 0:00:01] White mates.} Rb8 {[%emt 0:00:05]} 44. Qg6+ {[%emt 0:00:24]} Kh8 {[%emt 0:00:01]} 45. Rc7 {[%emt 0:00:08][%csl Gc7][%cal Rg6g7]} Rg8 {[%emt 0:00:01]} 46. b7 {[%emt 0:00:15]} Qb2 {[%emt 0:00:01]} 47. Qf7 {[%emt 0:00:29]} Qb6 {[%emt 0:00:16] [#]} 48. Qxg8+ $3 {[%emt 0:00:11][%mdl 512] Weighted Error Value: White=0.44/Black=0.40} 1-0

[Event "1st Anfield Cup 2022"]
[Site "Kyiv"]
[Date "2022.09.25"]
[Round "8.3"]
[White "Bakhmatsky, Vladislav"]
[Black "Maly, Alexey"]
[Result "1-0"]
[ECO "A06"]
[WhiteElo "2468"]
[BlackElo "2370"]
[Annotator "TA"]
[PlyCount "123"]
[EventDate "2022.09.20"]
[EventType "swiss"]
[EventCountry "UKR"]
[SourceTitle "playchess.com"]
[Source "ChessBase"]
[SourceQuality "1"]
[TimeControl "900+10"]

{[%evp 23,123,7,31,0,12,0,21,12,20,11,24,15,35,0,0,0,0,-5,0,0,0,0,0,0,0,0,0,0,0,0,39,48,56,79,68,48,190,155,216,185,187,169,195,193,231,231,231,231,231,231,677,123,106,0,0,0,101,0,0,0,239,248,727,728,733,733,732,728,724,713,29962,29957,5527,695,681,681,666,552,29966,29968,29970,29969,29973,29974,29974,29975,29975,29976,29973,29975,29975,29976,29979,29980,29981,29982,29982,29982,29982,29983,29983,29984]} 1. Nf3 {[%emt 0:00:02]} d5 {[%emt 0:00:08]} 2. e3 {[%emt 0:00:06]} Nf6 {[%emt 0:00:06]} 3. c4 {[%emt 0:00:01]} dxc4 {[%emt 0:00:21]} 4. Bxc4 {[%emt 0:00:03]} e6 {[%emt 0:00:01]} 5. Nc3 {[%emt 0:00:34]} a6 {[%emt 0:00:02]} 6. a4 {[%emt 0:00:03]} c5 {[%emt 0:00:07]} 7. d4 {[%emt 0:00:34]} Nc6 {[%emt 0:00:07]} 8. O-O {[%emt 0:00:03]} cxd4 {[%emt 0:00:02]} 9. exd4 {[%emt 0:00:02]} Nb4 10. Bg5 {[%emt 0:03:09]} Be7 {[%emt 0:00:26]} 11. Qe2 {[%emt 0:01:01]} O-O {[%emt 0:00:11]} 12. Rfd1 {[%emt 0:03:32]} Nfd5 {[%emt 0:02:33]} 13. Bxe7 {[%emt 0:01:16] D27: Queen's Gambit Accepted: Classical main line: 7 e4!? and 7 a4.} Nxe7 {[%emt 0:00:04]} 14. Ne5 {[%emt 0:00:01]} Nbd5 {[%emt 0:00:24]} 15. Qf3 {[%emt 0:01:45] [#] The position is equal.} b6 $146 {[%emt 0:03:17]} ({Predecessor:} 15... Nxc3 16. bxc3 Qc7 17. Bd3 Bd7 18. c4 Rad8 19. Ra3 Nf5 20. Bxf5 exf5 21. Qh5 Be6 {0-1 (47) Sonis,F (2490)-Maly,A (2371) Chess.com INT 2020}) 16. Nxd5 {[%emt 0:01:51]} exd5 {[%emt 0:00:17]} 17. Bd3 {[%emt 0:00:03]} Qd6 {[%emt 0:01:30]} 18. Qe2 {[%emt 0:02:27]} a5 {[%emt 0:01:32]} 19. Rac1 {[%emt 0:00:23]} Be6 {[%emt 0:00:50]} 20. Qc2 {[%emt 0:00:25]} g6 {[%emt 0:01:04]} 21. Qc7 {[%emt 0:00:02]} Qb4 {[%emt 0:00:27][%csl LRa4,LRb2,LRd4]} 22. Bb5 {[%emt 0:00:02] Black must now prevent Nd3.} Rac8 {[%emt 0:00:43]} 23. Qxb6 {[%emt 0:00:20]} Rxc1 {[%emt 0:00:22]} 24. Rxc1 {[%emt 0:00:01]} Qxb2 {[%emt 0:00:03]} 25. Rf1 {[%emt 0:00:05]} Nf5 {[%emt 0:01:03][%cal Be7f5,Bf5d4,Bd4e2][%mdl 32]} 26. Nc6 {[%emt 0:00:47]} Bd7 {[%emt 0:01:16]} 27. Qxa5 {[%emt 0:00:21]} Bxc6 {[%emt 0:01:32]} 28. Bxc6 {[%emt 0:00:02]} Nxd4 {[%emt 0:00:14]} 29. Bxd5 {[%emt 0:00:02]} Re8 {[%emt 0:00:41]} ({Black should try} 29... Ne2+ $14 30. Kh1 Nc3) 30. Qa7 {[%emt 0:00:28]} Ne2+ {[%emt 0:00:08]} 31. Kh1 {[%emt 0:00:00]} Qf6 {[%emt 0:00:05] [#]} 32. a5 $1 {[%emt 0:00:24]} Re5 {[%emt 0:00:01]} 33. Bf3 {[%emt 0:00:09]} ({Not} 33. Qb7 Nf4 $14) 33... Nf4 {[%emt 0:00:07]} 34. a6 {[%emt 0:00:08]} Ra5 {[%emt 0:00:25]} 35. Qb8+ {[%emt 0:00:22]} Kg7 {[%emt 0:00:01][%cal Of4h3]} 36. a7 {[%emt 0:00:03]} Ra1 $2 {[%emt 0:00:08]} (36... Qa1 37. Rd1 Nd3) 37. Bd1 $2 {[%emt 0:00:31]} (37. Rb1 $18 {is the precise move to win.}) 37... Qa6 $16 {[%emt 0:00:11][%csl LRa7,LRf1][%cal Ra6f1]} 38. Qe5+ {[%emt 0:00:09]} Qf6 {[%emt 0:00:31]} 39. Qb8 $40 {[%emt 0:00:09][%mdl 128] White has some attack.} Qa6 {[%emt 0:00:02][%csl LRa7,LRf1][%cal Ra6f1]} 40. Qe5+ {[%emt 0:00:10]} (40. Rg1 $16 g5 41. a8=Q Qxa8 42. Qe5+ Kf8 43. Qxg5 (43. Bf3 Rxg1+ 44. Kxg1 Qa3 $11)) 40... Qf6 $11 {[%emt 0:00:01]} 41. Qe3 {[%emt 0:00:05] Strongly threatening Kg1.} ({Don't play} 41. Qb8 $6 Qa6 $16) 41... Qa6 $2 {[%emt 0:00:26] [#] Black is on the road to losing.} (41... Nd5 $11 {and Black is okay.} 42. Qc5 Nc3) 42. Kg1 $1 $18 {[%emt 0:00:14] Chess con chili.} Ne6 {[%emt 0:00:20]} (42... Nxg2 43. Kxg2 Qxa7 44. Qc3+ Kh6 45. Qd2+ Kg7 46. Qc3+ Kh6) 43. Be2 {[%emt 0:00:05] And now Qc3+ would win.} Rxf1+ {[%emt 0:00:17]} 44. Bxf1 {[%emt 0:00:02][%mdl 4096] Endgame KQB-KQN} Qa1 {[%emt 0:00:04]} 45. g3 {[%emt 0:00:13] Threatening mate with Qb6.} Nd8 {[%emt 0:00:09]} 46. Qc5 {[%emt 0:00:14]} Ne6 {[%emt 0:00:07]} 47. Qb6 {[%emt 0:00:09]} Nd4 {[%emt 0:00:07]} 48. Qxd4+ {[%emt 0:00:03]} Qxd4 {[%emt 0:00:02]} 49. a8=Q {[%emt 0:00:02]} Qf6 {[%emt 0:00:05]} 50. Qe4 {[%emt 0:00:04]} h5 {[%emt 0:00:03]} 51. h4 {[%emt 0:00:01] White mates.} Qd6 {[%emt 0:00:01]} 52. Kg2 {[%emt 0:00:03]} Qf6 {[%emt 0:00:01]} 53. Bc4 {[%emt 0:00:02]} Qd6 {[%emt 0:00:03]} 54. Qd5 {[%emt 0:00:09]} Qe7 {[%emt 0:00:00] [#]} 55. Qxf7+ $1 {[%emt 0:00:28]} Qxf7 {[%emt 0:00:01]} 56. Bxf7 {[%emt 0:00:02]} Kxf7 {[%emt 0:00:01] K3P-KPP} 57. Kf3 {[%emt 0:00:01]} Kf6 {[%emt 0:01:01]} 58. Kf4 {[%emt 0:00:01]} Kf7 {[%emt 0:00:11]} 59. Kg5 {[%emt 0:00:01]} Kg7 {[%emt 0:00:01]} 60. f4 {[%emt 0:00:01]} Kf7 {[%emt 0:00:02]} 61. f5 {[%emt 0:00:01]} gxf5 {[%emt 0:00:01]} 62. Kxf5 {[%emt 0:00:01] Weighted Error Value: White=0.33/Black=0.65} 1-0